fUST/lending_fUST_20240911
["ID","MTS","AMOUNT","RATE_DAILY","PERIOD"]
[337735001,1725994250477,-1769.370873,0.00039593,14]
[337735002,1725994250486,-1769.370873,0.00039593,14]
[337735003,1725994250495,-1769.370873,0.00039593,14]
[337735004,1725994250504,-1769.370874,0.00039593,14]
[337735005,1725994250514,-151.0,0.00039593,14]
[337735006,1725994250523,-151.0,0.00039593,14]
[337735007,1725994250533,-151.0,0.00039593,14]
[337735008,1725994250542,-151.0,0.00039593,14]
[337735009,1725994250551,-151.0,0.00039593,14]
[337735010,1725994250560,-151.0,0.00039593,14]
[337735011,1725994250570,-151.0,0.00039593,14]
[337735012,1725994250581,-151.0,0.00039593,14]
[337735013,1725994250590,-151.0,0.00039593,14]
[337735014,1725994250599,-151.0,0.00039593,14]
[337735015,1725994250609,-151.0,0.00039593,14]
[337735016,1725994250618,-225.46316,0.00039593,14]
[337735017,1725994250627,-10000.0,0.00039593,14]
[337735018,1725994250637,-10000.0,0.00039593,14]
[337735019,1725994250646,-10000.0,0.00039593,14]
[337735020,1725994250655,-10000.0,0.00039593,14]
[337735021,1725994250666,-10000.0,0.00039593,14]
[337735022,1725994250675,-10000.0,0.00039593,14]
[337735023,1725994250685,-10000.0,0.00039593,14]
[337735024,1725994250694,-10000.0,0.00039593,14]
[337735025,1725994250703,-10000.0,0.00039593,14]
[337735026,1725994250712,-10000.0,0.00039593,14]
[337735027,1725994250721,-10000.0,0.00039593,14]
[337735028,1725994250730,-10000.0,0.00039593,14]
[337735029,1725994250739,-10000.0,0.00039593,14]
[337735030,1725994250748,-10000.0,0.00039593,14]
[337735031,1725994250797,-10000.0,0.00039593,14]
[337735032,1725994250807,-10000.0,0.00039593,14]
[337735033,1725994250816,-10000.0,0.00039593,14]
[337735034,1725994250825,-10000.0,0.00039593,14]
[337735035,1725994250836,-10000.0,0.00039593,14]
[337735036,1725994250845,-10000.0,0.00039593,14]
[337735037,1725994250855,-10000.0,0.00039593,14]
[337735038,1725994250864,-10000.0,0.00039593,14]
[337735039,1725994250873,-10000.0,0.00039593,14]
[337735040,1725994250883,-10000.0,0.00039593,14]
[337735041,1725994250892,-10000.0,0.00039593,14]
[337735042,1725994250901,-10000.0,0.00039593,14]
[337735043,1725994250911,-10000.0,0.00039593,14]
[337735044,1725994250920,-10000.0,0.00039593,14]
[337735045,1725994250929,-10000.0,0.00039593,14]
[337735046,1725994250938,-10000.0,0.00039593,14]
[337735047,1725994250948,-3071.076488,0.00039593,14]
[337735048,1725994250958,-173.411505,0.00039593,14]
[337735049,1725994250967,-173.411505,0.00039593,14]
[337735050,1725994250976,-173.411505,0.00039593,14]
[337735051,1725994250986,-173.411505,0.00039593,14]
[337735052,1725994250995,-173.411505,0.00039593,14]
[337735053,1725994251005,-173.411505,0.00039593,14]
[337735054,1725994251014,-173.411505,0.00039593,14]
[337735055,1725994251023,-1322.342102,0.00039593,14]
[337735056,1725994251032,-173.411505,0.00039593,14]
[337735057,1725994251041,-173.411505,0.00039593,14]
[337735058,1725994251051,-1322.342102,0.00039593,14]
[337735059,1725994251060,-1322.342102,0.00039593,14]
[337735060,1725994251070,-173.411505,0.00039593,14]
[337735061,1725994251080,-1322.342102,0.00039593,14]
[337735062,1725994251090,-173.411505,0.00039593,14]
[337735063,1725994251098,-1322.342102,0.00039593,14]
[337735064,1725994251108,-1322.342102,0.00039593,14]
[337735065,1725994251122,-1322.342102,0.00039593,14]
[337735066,1725994251132,-173.411505,0.00039593,14]
[337735067,1725994251142,-173.411505,0.00039593,14]
[337735068,1725994251152,-1322.342102,0.00039593,14]
[337735069,1725994251162,-173.411505,0.00039593,14]
[337735070,1725994251172,-1322.342102,0.00039593,14]
[337735071,1725994251181,-1322.342102,0.00039593,14]
[337735072,1725994251192,-173.411505,0.00039593,14]
[337735073,1725994251201,-1322.342102,0.00039593,14]
[337735074,1725994251211,-173.411505,0.00039593,14]
[337735075,1725994251220,-1322.342102,0.00039593,14]
[337735076,1725994251230,-173.411505,0.00039593,14]
[337735077,1725994251240,-1322.342102,0.00039593,14]
[337735078,1725994251249,-173.411514,0.00039593,14]
[337735079,1725994251258,-1322.342102,0.00039593,14]
[337735080,1725994251268,-1322.342102,0.00039593,14]
[337735081,1725994251277,-1322.342102,0.00039593,14]
[337735082,1725994251287,-1322.342102,0.00039593,14]
[337735083,1725994251296,-1322.342099,0.00039593,14]
[337735084,1725994251306,-485.139077,0.00039593,14]
[337735085,1725994251315,-485.139077,0.00039593,14]
[337735086,1725994251324,-485.139077,0.00039593,14]
[337735087,1725994251335,-485.139077,0.00039593,14]
[337735088,1725994251345,-485.139077,0.00039593,14]
[337735089,1725994251354,-485.139077,0.00039593,14]
[337735090,1725994251364,-485.139077,0.00039593,14]
[337735091,1725994251374,-485.139077,0.00039593,14]
[337735092,1725994251383,-485.139077,0.00039593,14]
[337735093,1725994251393,-485.139077,0.00039593,14]
[337735094,1725994251403,-485.139077,0.00039593,14]
[337735095,1725994251412,-485.139077,0.00039593,14]
[337735096,1725994251422,-485.139077,0.00039593,14]
[337735097,1725994251431,-485.139077,0.00039593,14]
[337735098,1725994251441,-485.139077,0.00039593,14]
[337735099,1725994251450,-485.139077,0.00039593,14]
[337735100,1725994251459,-485.139077,0.00039593,14]
[337735101,1725994251469,-485.139086,0.00039593,14]
[337735102,1725994251478,-372.764864,0.00039593,14]
[337735103,1725994251489,-372.764864,0.00039593,14]
[337735104,1725994251498,-372.764864,0.00039593,14]
[337735105,1725994251508,-372.764864,0.00039593,14]
[337735106,1725994251518,-372.764864,0.00039593,14]
[337735107,1725994251527,-372.764864,0.00039593,14]
[337735108,1725994251537,-372.764864,0.00039593,14]
[337735109,1725994251547,-372.764864,0.00039593,14]
[337735110,1725994251557,-372.764864,0.00039593,14]
[337735111,1725994251566,-372.764864,0.00039593,14]
[337735112,1725994251576,-372.764864,0.00039593,14]
[337735113,1725994251587,-372.764864,0.00039593,14]
[337735114,1725994251597,-372.764864,0.00039593,14]
[337735115,1725994251606,-372.764864,0.00039593,14]
[337735116,1725994251616,-372.764864,0.00039593,14]
[337735117,1725994251625,-372.764864,0.00039593,14]
[337735118,1725994251635,-372.764864,0.00039593,14]
[337735119,1725994251644,-372.764864,0.00039593,14]
[337735120,1725994251654,-372.764864,0.00039593,14]
[337735121,1725994251663,-372.764872,0.00039593,14]
[337735122,1725994251673,-1079.417339,0.00039593,14]
[337735123,1725994251682,-1079.417339,0.00039593,14]
[337735124,1725994251692,-1079.417339,0.00039593,14]
[337735125,1725994251701,-1079.417339,0.00039593,14]
[337735126,1725994251711,-1079.417339,0.00039593,14]
[337735127,1725994251721,-1079.417339,0.00039593,14]
[337735128,1725994251730,-1079.417339,0.00039593,14]
[337735129,1725994251740,-1079.417339,0.00039593,14]
[337735130,1725994251749,-1079.417339,0.00039593,14]
[337735131,1725994251759,-1079.417339,0.00039593,14]
[337735132,1725994251768,-1079.417339,0.00039593,14]
[337735133,1725994251777,-1079.417339,0.00039593,14]
[337735134,1725994251786,-1079.417339,0.00039593,14]
[337735135,1725994251797,-1079.417339,0.00039593,14]
[337735136,1725994251806,-1079.417339,0.00039593,14]
[337735137,1725994251816,-1079.417339,0.00039593,14]
[337735138,1725994251826,-1079.417339,0.00039593,14]
[337735139,1725994251837,-1079.41733,0.00039593,14]
[337735140,1725994251846,-151.0,0.00039593,14]
[337735141,1725994251856,-151.0,0.00039593,14]
[337735142,1725994251865,-151.0,0.00039593,14]
[337735143,1725994251875,-151.0,0.00039593,14]
[337735144,1725994251884,-151.0,0.00039593,14]
[337735145,1725994251894,-151.0,0.00039593,14]
[337735146,1725994251903,-151.0,0.00039593,14]
[337735147,1725994251913,-151.0,0.00039593,14]
[337735148,1725994251923,-151.0,0.00039593,14]
[337735149,1725994251932,-265.867135,0.00039593,14]
[337735150,1725994251943,-1082.739104,0.00039593,14]
[337735151,1725994251952,-1082.739104,0.00039593,14]
[337735152,1725994251961,-1082.739104,0.00039593,14]
[337735153,1725994251971,-1082.739104,0.00039593,14]
[337735154,1725994251980,-1082.739104,0.00039593,14]
[337735155,1725994251990,-1082.739104,0.00039593,14]
[337735156,1725994251999,-1082.739104,0.00039593,14]
[337735157,1725994252008,-1082.739104,0.00039593,14]
[337735158,1725994252018,-1082.739104,0.00039593,14]
[337735159,1725994252027,-1082.739104,0.00039593,14]
[337735160,1725994252037,-314.910684,0.00039593,14]
[337735161,1725994252046,-1082.739104,0.00039593,14]
[337735162,1725994252056,-314.910684,0.00039593,14]
[337735163,1725994252066,-1082.739104,0.00039593,14]
[337735164,1725994252076,-314.910684,0.00039593,14]
[337735165,1725994252088,-1082.739104,0.00039593,14]
[337735166,1725994252098,-314.910684,0.00039593,14]
[337735167,1725994252108,-1082.739104,0.00039593,14]
[337735168,1725994252119,-314.910684,0.00039593,14]
[337735169,1725994252130,-1082.739104,0.00039593,14]
[337735170,1725994252139,-314.910684,0.00039593,14]
[337735171,1725994252149,-1082.739104,0.00039593,14]
[337735172,1725994252159,-314.910684,0.00039593,14]
[337735173,1725994252168,-1082.739104,0.00039593,14]
[337735174,1725994252177,-1082.739104,0.00039593,14]
[337735175,1725994252187,-314.910684,0.00039593,14]
[337735176,1725994252196,-1082.739104,0.00039593,14]
[337735177,1725994252206,-314.910684,0.00039593,14]
[337735178,1725994252215,-1082.73911,0.00039593,14]
[337735179,1725994252224,-314.910684,0.00039593,14]
[337735180,1725994252234,-314.910684,0.00039593,14]
[337735181,1725994252243,-314.910684,0.00039593,14]
[337735182,1725994252253,-314.910684,0.00039593,14]
[337735183,1725994252263,-314.910684,0.00039593,14]
[337735184,1725994252273,-314.910684,0.00039593,14]
[337735185,1725994252282,-314.910684,0.00039593,14]
[337735186,1725994252291,-170.340205,0.00039593,14]
[337735187,1725994252301,-170.340205,0.00039593,14]
[337735188,1725994252310,-314.910684,0.00039593,14]
[337735189,1725994252319,-314.910684,0.00039593,14]
[337735190,1725994252328,-151.0,0.00039593,14]
[337735191,1725994252338,-314.910684,0.00039593,14]
[337735192,1725994252347,-151.0,0.00039593,14]
[337735193,1725994252357,-170.340205,0.00039593,14]
[337735194,1725994252366,-314.910675,0.00039593,14]
[337735195,1725994252375,-151.0,0.00039593,14]
[337735196,1725994252385,-170.340205,0.00039593,14]
[337735197,1725994252395,-167.956076,0.00039593,14]
[337735198,1725994252404,-170.340205,0.00039593,14]
[337735199,1725994252413,-170.340205,0.00039593,14]
[337735200,1725994252422,-170.340205,0.00039593,14]
[337735201,1725994252432,-170.340205,0.00039593,14]
[337735202,1725994252441,-170.340205,0.00039593,14]
[337735203,1725994252450,-170.340205,0.00039593,14]
[337735204,1725994252459,-170.340205,0.00039593,14]
[337735205,1725994252468,-170.340205,0.00039593,14]
[337735206,1725994252477,-170.340205,0.00039593,14]
[337735207,1725994252486,-170.340205,0.00039593,14]
[337735208,1725994252495,-170.340205,0.00039593,14]
[337735209,1725994252504,-170.340205,0.00039593,14]
[337735210,1725994252514,-189.595591,0.00039593,14]
[337735211,1725994252524,-170.340205,0.00039593,14]
[337735212,1725994252533,-189.595591,0.00039593,14]
[337735213,1725994252542,-170.340205,0.00039593,14]
[337735214,1725994252551,-189.595591,0.00039593,14]
[337735215,1725994252560,-170.340205,0.00039593,14]
[337735216,1725994252569,-189.595591,0.00039593,14]
[337735217,1725994252579,-170.340213,0.00039593,14]
[337735218,1725994252589,-189.595591,0.00039593,14]
[337735219,1725994252598,-189.595591,0.00039593,14]
[337735220,1725994252607,-189.595591,0.00039593,14]
[337735221,1725994252617,-189.595591,0.00039593,14]
[337735222,1725994252626,-189.595591,0.00039593,14]
[337735223,1725994252636,-189.595591,0.00039593,14]
[337735224,1725994252646,-258.377021,0.00039593,14]
[337735225,1725994252655,-189.595591,0.00039593,14]
[337735226,1725994252664,-258.377021,0.00039593,14]
[337735227,1725994252674,-189.595591,0.00039593,14]
[337735228,1725994252683,-258.377021,0.00039593,14]
[337735229,1725994252693,-258.377021,0.00039593,14]
[337735230,1725994252702,-189.595591,0.00039593,14]
[337735231,1725994252712,-258.377021,0.00039593,14]
[337735232,1725994252721,-189.595591,0.00039593,14]
[337735233,1725994252730,-258.377021,0.00039593,14]
[337735234,1725994252739,-189.595591,0.00039593,14]
[337735235,1725994252748,-151.0,0.00039593,14]
[337735236,1725994252757,-189.595591,0.00039593,14]
[337735237,1725994252766,-258.377021,0.00039593,14]
[337735238,1725994252775,-189.595591,0.00039593,14]
[337735239,1725994252784,-258.377021,0.00039593,14]
[337735240,1725994252793,-189.595592,0.00039593,14]
[337735241,1725994252802,-153.798017,0.00039593,14]
[337735242,1725994252812,-258.377021,0.00039593,14]
[337735243,1725994252821,-151.0,0.00039593,14]
[337735244,1725994252832,-151.0,0.00039593,14]
[337735245,1725994252841,-258.377021,0.00039593,14]
[337735246,1725994252850,-151.0,0.00039593,14]
[337735247,1725994252860,-258.377021,0.00039593,14]
[337735248,1725994252869,-151.0,0.00039593,14]
[337735249,1725994252878,-151.0,0.00039593,14]
[337735250,1725994252887,-151.0,0.00039593,14]
[337735251,1725994252896,-258.377021,0.00039593,14]
[337735252,1725994252906,-151.0,0.00039593,14]
[337735253,1725994252914,-258.377021,0.00039593,14]
[337735254,1725994252924,-151.0,0.00039593,14]
[337735255,1725994252934,-258.377021,0.00039593,14]
[337735256,1725994252943,-151.0,0.00039593,14]
[337735257,1725994252952,-258.377021,0.00039593,14]
[337735258,1725994252962,-151.0,0.00039593,14]
[337735259,1725994252971,-258.377021,0.00039593,14]
[337735260,1725994252980,-151.0,0.00039593,14]
[337735261,1725994252990,-258.377021,0.00039593,14]
[337735262,1725994252999,-151.0,0.00039593,14]
[337735263,1725994253009,-258.377015,0.00039593,14]
[337735264,1725994253019,-151.0,0.00039593,14]
[337735265,1725994253029,-151.0,0.00039593,14]
[337735266,1725994253038,-151.0,0.00039593,14]
[337735267,1725994253048,-151.0,0.00039593,14]
[337735268,1725994253057,-151.0,0.00039593,14]
[337735269,1725994253068,-151.0,0.00039593,14]
[337735270,1725994253077,-151.0,0.00039593,14]
[337735271,1725994253088,-151.0,0.00039593,14]
[337735272,1725994253097,-151.0,0.00039593,14]
[337735273,1725994253107,-151.0,0.00039593,14]
[337735274,1725994253119,-151.0,0.00039593,14]
[337735275,1725994253128,-151.0,0.00039593,14]
[337735276,1725994253138,-151.0,0.00039593,14]
[337735277,1725994253147,-151.0,0.00039593,14]
[337735278,1725994253158,-151.0,0.00039593,14]
[337735279,1725994253168,-151.0,0.00039593,14]
[337735280,1725994253177,-151.0,0.00039593,14]
[337735281,1725994253187,-215.405559,0.00039593,14]
[337735282,1725994253197,-265.92962,0.00039593,14]
[337735283,1725994253207,-265.92962,0.00039593,14]
[337735284,1725994253216,-265.92962,0.00039593,14]
[337735285,1725994253226,-265.92962,0.00039593,14]
[337735286,1725994253235,-265.92962,0.00039593,14]
[337735287,1725994253245,-265.92962,0.00039593,14]
[337735288,1725994253254,-265.92962,0.00039593,14]
[337735289,1725994253264,-265.92962,0.00039593,14]
[337735290,1725994253274,-151.0,0.00039593,14]
[337735291,1725994253283,-151.0,0.00039593,14]
[337735292,1725994253293,-151.0,0.00039593,14]
[337735293,1725994253303,-151.0,0.00039593,14]
[337735294,1725994253312,-151.0,0.00039593,14]
[337735295,1725994253322,-151.0,0.00039595,14]
[337735296,1725994253332,-151.0,0.00039595,14]
[337735297,1725994253341,-265.92962,0.00039595,14]
[337735298,1725994253351,-265.92962,0.00039595,14]
[337735299,1725994253361,-265.92962,0.00039595,14]
[337735300,1725994253371,-265.92962,0.00039595,14]
[337735301,1725994253380,-265.92962,0.00039595,14]
[337735302,1725994253390,-265.92962,0.00039595,14]
[337735303,1725994253400,-265.92962,0.00039595,14]
[337735304,1725994253410,-265.92962,0.00039595,14]
[337735305,1725994253420,-265.92962,0.00039595,14]
[337735306,1725994253430,-265.92962,0.00039595,14]
[337735307,1725994253439,-265.92962,0.00039595,14]
[337735308,1725994253449,-265.929621,0.00039595,14]
[337735309,1725994253458,-151.0,0.00039595,14]
[337735310,1725994253467,-6438.30553366,0.00039595,2]
[337735311,1725994253477,-4144.43003565,0.00039595,2]
[337735312,1725994253487,-4115.26510414,0.00039595,2]
[337735313,1725994253496,-10080.45999006,0.00039595,2]
[337735314,1725994253506,-9817.6711851,0.00039595,2]
[337735315,1725994253516,-18977.03932048,0.00039595,2]
[337735316,1725994253525,-10038.72709173,0.00039595,2]
[337735317,1725994253534,-3019.20200962,0.00039595,5]
[337735318,1725994253826,-3292.72790095,0.00039595,5]
[337735319,1725994254442,-84558.37098225,0.00039595,5]
[337735320,1725994255244,-1513.37031364,0.0003499,3]
[337735321,1725994255290,-407.47213775,0.0003499,3]
[337735322,1725994255394,-2042.917064,0.0003499,3]
[337735420,1725995151187,-164.467637,0.00017808,2]
[337735421,1725995151210,-164.467637,0.00024081,2]
[337735422,1725995151233,-600.0,0.0002678,14]
[337735423,1725995151255,-600.0,0.0002678,14]
[337735424,1725995151278,-164.467637,0.00030353,2]
[337735425,1725995151300,-161.555281,0.00031041,2]
[337735426,1725995151322,-167.167521,0.00031436,2]
[337735427,1725995151343,-49.00164046,0.00031601,7]
[337735468,1725995254145,-500.0,0.00029659,2]
[337735469,1725995254169,-600.0,0.00029843,2]
[337735470,1725995254192,-600.0,0.00029903,2]
[337735471,1725995254215,-600.0,0.00030599,7]
[337735472,1725995254238,-500.0,0.00030643,7]
[337735473,1725995254260,-600.0,0.0003108,7]
[337735474,1725995254282,-600.0,0.00031388,7]
[337735475,1725995254305,-700.0,0.00031403,7]
[337735477,1725995254327,-500.0,0.00031796,7]
[337735478,1725995254349,-500.0,0.00031992,7]
[337735479,1725995254371,-6090.5920114,0.00032015,2]
[337735480,1725995254393,-500.0,0.00032171,7]
[337735481,1725995254421,-500.0,0.00032209,7]
[337735482,1725995254443,-600.0,0.0003246,7]
[337735483,1725995254465,-167.167521,0.00032508,2]
[337735484,1725995254489,-500.0,0.00032534,7]
[337735485,1725995254511,-500.0,0.00032631,7]
[337735486,1725995254533,-600.0,0.00032751,7]
[337735487,1725995254554,-600.0,0.00032891,7]
[337735488,1725995254577,-600.0,0.00032991,7]
[337735489,1725995254600,-500.0,0.00033269,7]
[337735490,1725995254622,-819.54994406,0.00033285,7]
[337735491,1725995254646,-500.0,0.00033328,7]
[337735492,1725995254672,-167.167521,0.00033579,2]
[337735493,1725995254694,-553.89189639,0.00034286,7]
[337735494,1725995254716,-600.0,0.00034594,7]
[337735495,1725995254739,-167.167521,0.00034651,2]
[337735496,1725995254760,-600.0,0.00034658,7]
[337735497,1725995254783,-500.0,0.00034896,7]
[337735498,1725995254805,-500.0,0.0003495,7]
[337735499,1725995254827,-500.0,0.00035325,7]
[337735500,1725995254849,-500.0,0.00035362,7]
[337735501,1725995254872,-153.57,0.000354,31]
[337735502,1725995254895,-153.57,0.000354,31]
[337735503,1725995254921,-153.57,0.000354,31]
[337735504,1725995254943,-153.57,0.000354,31]
[337735505,1725995254965,-153.57,0.000354,31]
[337735506,1725995254988,-153.57,0.000354,31]
[337735507,1725995255010,-153.57,0.000354,31]
[337735508,1725995255031,-500.0,0.00035504,7]
[337735509,1725995255052,-160.281756,0.00035616,120]
[337735510,1725995255074,-167.167521,0.00035722,2]
[337735511,1725995255095,-500.0,0.00036112,7]
[337735512,1725995255116,-164.467637,0.00036626,2]
[337735513,1725995255136,-500.0,0.00036768,7]
[337735514,1725995255158,-500.0,0.00036775,7]
[337735515,1725995255179,-600.0,0.0003685,7]
[337735516,1725995255199,-1000.0,0.00036906,120]
[337735517,1725995255220,-500.0,0.00036918,7]
[337735518,1725995255240,-153.07231703,0.00036924,19]
[337735519,1725995255262,-500.0,0.00037169,7]
[337735520,1725995255284,-500.0,0.00037597,7]
[337735521,1725995255306,-500.0,0.00037654,7]
[337735522,1725995255327,-600.0,0.00037854,7]
[337735523,1725995255348,-1000.0,0.00037865,120]
[337735524,1725995255370,-500.0,0.00038497,7]
[337735525,1725995255392,-500.0,0.00038552,7]
[337735526,1725995255421,-500.0,0.00038784,7]
[337735527,1725995255443,-1000.0,0.00038824,120]
[337735528,1725995255464,-500.0,0.00038885,7]
[337735529,1725995255487,-1000.0,0.00039,120]
[337735530,1725995255509,-500.0,0.00039066,7]
[337735531,1725995255531,-500.0,0.00039096,7]
[337735532,1725995255553,-1000.0,0.00039198,2]
[337735533,1725995255574,-153.0,0.00039233,2]
[337735534,1725995255596,-1000.0,0.00039239,2]
[337735535,1725995255617,-1000.0,0.00039241,2]
[337735536,1725995255638,-1000.0,0.00039276,2]
[337735537,1725995255661,-1000.0,0.00039298,2]
[337735538,1725995255685,-153.57,0.000393,31]
[337735539,1725995255708,-153.57,0.000393,31]
[337735540,1725995255732,-153.57,0.000393,31]
[337735541,1725995255756,-153.57,0.000393,31]
[337735542,1725995255779,-153.57,0.000393,31]
[337735543,1725995255802,-153.57,0.000393,31]
[337735544,1725995255825,-153.57,0.000393,31]
[337735545,1725995255848,-153.57,0.000393,31]
[337735546,1725995255871,-153.57,0.000393,31]
[337735547,1725995255892,-153.57,0.000393,31]
[337735548,1725995255916,-153.57,0.000393,31]
[337735549,1725995255937,-153.57,0.000393,31]
[337735550,1725995255960,-153.57,0.000393,31]
[337735551,1725995255983,-153.57,0.000393,31]
[337735552,1725995256003,-1000.0,0.00039301,2]
[337735553,1725995256023,-923.99478141,0.00039397,11]
[337735554,1725995256045,-604.73019962,0.00039397,32]
[337735555,1725995256065,-1000.0,0.00039432,2]
[337735556,1725995256087,-1014.46793027,0.00039445,2]
[337735557,1725995256109,-500.0,0.00039453,7]
[337735558,1725995256130,-1000.0,0.0003947,2]
[337735559,1725995256155,-2812.34065997,0.00039484,2]
[337735560,1725995256179,-150.0,0.000395,39]
[337735561,1725995256200,-176.431936,0.000395,2]
[337735562,1725995256223,-4701.67013698,0.00039547,3]
[337735608,1725995432197,-164.467637,0.00017808,2]
[337735610,1725995432207,-164.467637,0.00025753,2]
[337735612,1725995432217,-500.0,0.00030966,7]
[337735614,1725995432226,-500.0,0.0003199,7]
[337735616,1725995432235,-700.0,0.0003296,7]
[337735618,1725995432245,-500.0,0.00033401,7]
[337735621,1725995432256,-164.467637,0.00033699,2]
[337735624,1725995432265,-602.76708899,0.00033879,7]
[337735632,1725995432289,-97.23291101,0.00033879,7]
[337735634,1725995432298,-500.0,0.000344,7]
[337735637,1725995432308,-700.0,0.00034536,7]
[337735639,1725995432318,-500.0,0.00034606,7]
[337735641,1725995432327,-700.0,0.00034678,7]
[337735643,1725995432341,-500.0,0.00034842,7]
[337735645,1725995432350,-164.113666,0.00035268,2]
[337735647,1725995432361,-166.666676,0.00035532,2]
[337735649,1725995432371,-160.281756,0.00035616,120]
[337735651,1725995432384,-500.0,0.00036412,7]
[337735654,1725995432394,-500.0,0.00036924,7]
[337735656,1725995432404,-500.0,0.00036925,7]
[337735658,1725995432413,-406.04246811,0.00037178,7]
[337735660,1725995432426,-293.95753189,0.00037178,7]
[337735662,1725995432435,-700.0,0.00037248,7]
[337735664,1725995432445,-166.666676,0.00037384,2]
[337735666,1725995432457,-500.0,0.00037402,7]
[337735668,1725995432467,-500.0,0.00037509,7]
[337735670,1725995432477,-633.79780358,0.00037669,7]
[337735763,1725995447115,-66.20219642,0.00037669,7]
[337735764,1725995447126,-500.0,0.00037771,7]
[337735765,1725995447135,-500.0,0.00037848,7]
[337735766,1725995447146,-600.0,0.00037979,7]
[337735767,1725995447158,-700.0,0.00038001,7]
[337735768,1725995447168,-700.0,0.00038255,7]
[337735769,1725995447179,-160.0,0.00038508,3]
[337735770,1725995447188,-500.0,0.00038565,7]
[337735771,1725995447197,-500.0,0.00038583,7]
[337735772,1725995447206,-700.0,0.00038902,7]
[337735773,1725995447215,-700.0,0.00039068,7]
[337735774,1725995447225,-700.0,0.00039185,7]
[337735775,1725995447238,-827.97193611,0.00039203,2]
[337735830,1725996337155,-164.467637,0.00017808,2]
[337735831,1725996337179,-42.64509834,0.0002774,2]
[337735833,1725996428127,-160.913878,0.00017808,2]
[337735834,1725996428149,-160.913878,0.00028643,2]
[337735835,1725996428173,-153.6,0.000354,31]
[337735836,1725996428197,-153.6,0.000354,31]
[337735837,1725996428222,-153.6,0.000354,31]
[337735838,1725996428246,-153.6,0.000354,31]
[337735839,1725996428269,-12624.2858376,0.00035951,2]
[337735840,1725996428292,-160.281756,0.00036366,120]
[337735841,1725996428314,-500.0,0.00037594,7]
[337735842,1725996428335,-153.07231703,0.00037857,23]
[337735843,1725996428356,-500.0,0.00037973,7]
[337735844,1725996428377,-500.0,0.00038198,7]
[337735845,1725996428398,-500.0,0.00038316,7]
[337735846,1725996428418,-500.0,0.000384,7]
[337735847,1725996428439,-681.63201266,0.00038496,7]
[337735848,1725996428461,-500.0,0.00038531,7]
[337735849,1725996428483,-307.6285829,0.00038651,2]
[337735850,1725996428505,-500.0,0.00038749,7]
[337735851,1725996428528,-500.0,0.00038783,7]
[337735852,1725996428551,-153.6,0.000389,31]
[337735853,1725996428575,-153.6,0.000389,31]
[337735854,1725996428598,-153.6,0.000389,31]
[337735855,1725996428621,-153.6,0.000389,31]
[337735856,1725996428644,-153.6,0.000389,31]
[337735857,1725996428669,-153.6,0.000389,31]
[337735858,1725996428693,-153.6,0.000389,31]
[337735859,1725996428728,-153.6,0.000389,31]
[337735860,1725996428750,-153.9046295,0.00038904,2]
[337735861,1725996428772,-276.10375482,0.00039165,7]
[337735862,1725996428793,-172.02806389,0.00039203,2]
[337735863,1725996428818,-500.0,0.00039241,7]
[337735864,1725996428842,-1000.0,0.0003928,2]
[337735865,1725996428865,-912.42898175,0.00039281,2]
[337735866,1725996428887,-1000.0,0.00039291,2]